bitfinex/quotes_BTCUSD_20251209
["timestamp","ask_amount","ask_price","bid_price","bid_amount"]
[1765246003882,0.11160072,90288.0,90287.0,0.004]
[1765246004663,0.11160072,90288.0,90287.0,0.003]
[1765246004862,0.23261619,90278.0,90275.0,0.08283677]
[1765246005102,0.04288,90276.0,90275.0,0.08283677]
[1765246005311,0.04288,90276.0,90275.0,0.30438204]
[1765246006273,0.04288,90276.0,90275.0,0.08283677]
[1765246007225,0.01689,90276.0,90275.0,0.08283677]
[1765246007556,0.01689,90276.0,90275.0,0.08683677]
[1765246007763,0.01107652,90281.0,90275.0,0.08683677]
[1765246007764,0.23259181,90287.0,90277.0,0.01107701]
[1765246007923,0.0110764,90282.0,90279.0,0.01107677]
[1765246008739,0.01107615,90284.0,90279.0,0.23260988]
[1765246009355,0.05025615,90284.0,90279.0,0.23260988]
[1765246009567,0.03918,90284.0,90281.0,0.01107652]
[1765246009810,0.01107628,90283.0,90279.0,0.01107677]
[1765246009996,0.24752417,90280.0,90277.0,0.001]
[1765246010144,0.01689,90278.0,90275.0,0.30438185]
[1765246010339,0.01689,90278.0,90275.0,0.31545911]
[1765246010569,0.01107665,90280.0,90276.0,0.01107714]
[1765246010776,0.01107689,90278.0,90275.0,0.09391403]
[1765246010980,0.01107677,90279.0,90275.0,0.09391403]
[1765246011312,0.01107677,90279.0,90276.0,0.01107714]
[1765246011695,0.01107677,90279.0,90276.0,0.23261968]
[1765246012526,0.2326148,90278.0,90275.0,0.08483677]
[1765246013318,0.01107689,90278.0,90275.0,0.09391403]
[1765246013738,0.01107689,90278.0,90276.0,0.002]
[1765246013963,0.01107689,90278.0,90275.0,0.09391403]
[1765246014178,0.01107689,90278.0,90275.0,0.09591403]
[1765246015211,0.23261421,90279.0,90276.0,0.01107714]
[1765246015414,0.01107677,90279.0,90276.0,0.23261985]
[1765246015612,0.01107677,90279.0,90276.0,0.01107714]
[1765246016438,0.2326148,90278.0,90275.0,0.08283677]
[1765246016801,0.2326148,90278.0,90276.0,0.002]
[1765246017014,0.01107689,90278.0,90276.0,0.002]
[1765246017216,0.01107665,90280.0,90276.0,0.01307714]
[1765246017423,0.01107665,90280.0,90276.0,0.01107714]
[1765246017852,0.01689,90279.0,90276.0,0.01107714]
[1765246018059,0.02796677,90279.0,90276.0,0.01107714]
[1765246018476,0.02796677,90279.0,90276.0,0.01307714]
[1765246019150,0.01689,90279.0,90276.0,0.23461772]
[1765246019371,0.00185155,90288.0,90285.0,0.01107603]
[1765246019603,0.00185155,90288.0,90287.0,0.24350174]
[1765246019827,0.00023868,90288.0,90287.0,0.24350174]
[1765246020093,0.00023868,90288.0,90287.0,1.12432574]
[1765246020973,0.00023868,90288.0,90287.0,1.10233983]
[1765246021222,0.00223868,90288.0,90287.0,1.10233983]
[1765246021870,0.00223868,90288.0,90287.0,0.631405]
[1765246022084,0.02441868,90288.0,90287.0,0.447446]
[1765246022301,0.02441868,90288.0,90278.0,0.24352363]
[1765246022302,0.01107652,90281.0,90278.0,0.46658254]
[1765246022537,0.01268939,90281.0,90280.0,0.430219]
[1765246022754,0.00161287,90281.0,90280.0,0.430219]
[1765246022973,0.00023868,90288.0,90287.0,0.22151583]
[1765246023411,0.00723868,90288.0,90287.0,0.22151583]
[1765246023554,0.00223868,90288.0,90287.0,0.22151583]
[1765246023758,0.00023868,90288.0,90287.0,0.22151583]
[1765246024177,0.00023868,90288.0,90287.0,0.22351583]
[1765246024491,0.00023868,90288.0,90287.0,0.88662774]
[1765246025287,0.00023868,90288.0,90287.0,0.448616]
[1765246026240,0.00023868,90288.0,90287.0,0.442616]
[1765246026620,0.00023868,90288.0,90287.0,0.446616]
[1765246031440,0.08447072,90288.0,90287.0,0.004]
[1765246031847,0.05172072,90288.0,90287.0,0.004]
[1765246032385,0.05172072,90288.0,90284.0,0.01107615]
[1765246032613,0.01574,90286.0,90284.0,0.01107615]
[1765246033403,0.02681591,90286.0,90282.0,0.0110764]
[1765246033655,0.03243,90285.0,90284.0,0.001]
[1765246033830,0.03243,90285.0,90284.0,0.004]
[1765246034037,0.05515,90285.0,90284.0,0.004]
[1765246034926,0.05515,90285.0,90284.0,0.003]
[1765246035252,0.05515,90285.0,90284.0,0.004]
[1765246035421,0.05515,90285.0,90284.0,0.001]
[1765246035621,0.05515,90285.0,90282.0,0.2326022]
[1765246035824,0.03243,90285.0,90284.0,0.003]
[1765246036040,0.01735287,90286.0,90284.0,0.003]
[1765246036232,0.02272,90285.0,90284.0,0.003]
[1765246036436,0.02272,90285.0,90284.0,0.001]
[1765246036641,0.05515,90285.0,90284.0,0.001]
[1765246037071,0.08284009,90285.0,90284.0,0.001]
[1765246037478,0.08284009,90285.0,90284.0,0.004]
[1765246037827,0.08284009,90285.0,90284.0,0.003]
[1765246038346,0.08284009,90285.0,90284.0,0.004]
[1765246038558,0.08284009,90285.0,90284.0,0.001]
[1765246038755,0.0110775,90273.0,90270.0,0.5301323]
[1765246038979,0.03846,90271.0,90269.0,0.23263785]
[1765246039302,0.03846,90271.0,90268.0,0.01107812]
[1765246039466,0.02272,90269.0,90268.0,0.12325012]
[1765246039988,0.02272,90269.0,90268.0,0.112172]
[1765246040590,0.02272,90269.0,90268.0,0.116172]
[1765246041376,0.02272,90269.0,90268.0,0.118172]
[1765246042561,0.05515,90269.0,90268.0,0.006]
[1765246048272,0.2215487,90274.0,90270.0,0.02198591]
[1765246048415,0.01107726,90275.0,90271.0,0.01107775]
[1765246048627,0.0110775,90273.0,90269.0,0.011078]
[1765246048823,0.23263027,90272.0,90268.0,0.006]
[1765246049026,0.23263474,90271.0,90268.0,0.006]
[1765246049220,0.24837474,90271.0,90268.0,0.004]
[1765246049458,0.24837474,90271.0,90270.0,0.001]
[1765246050120,0.04953775,90271.0,90270.0,0.001]
[1765246050979,0.04953775,90271.0,90268.0,0.01107812]
[1765246051205,0.04953775,90271.0,90268.0,0.01507812]
[1765246051498,0.04953775,90271.0,90268.0,0.01207812]
[1765246051877,0.04953775,90271.0,90270.0,0.004]
[1765246052077,0.04953775,90271.0,90268.0,0.01207812]
[1765246052517,0.04953775,90271.0,90268.0,0.01607812]
[1765246052718,0.04953775,90271.0,90268.0,0.01207812]
[1765246052953,0.04953775,90271.0,90270.0,0.004]
[1765246053408,0.03846,90271.0,90270.0,0.004]
[1765246053605,0.29244509,90271.0,90270.0,0.004]
[1765246054066,0.29244509,90271.0,90270.0,0.005]
[1765246054245,0.29244509,90271.0,90270.0,0.001]
[1765246055129,0.29244509,90271.0,90270.0,0.005]
[1765246058794,0.40358274,90271.0,90270.0,0.005]
[1765246058958,0.30244327,90271.0,90270.0,0.005]
[1765246059412,0.30244327,90271.0,90270.0,0.00538714]
[1765246059630,0.30244327,90271.0,90270.0,0.00438714]
[1765246060417,0.30244327,90271.0,90270.0,0.00038714]
[1765246060823,0.30444327,90271.0,90270.0,0.00138714]
[1765246061016,0.30444327,90271.0,90270.0,0.00038714]
[1765246061197,0.30744327,90271.0,90270.0,0.00038714]
[1765246073165,0.97873474,90271.0,90270.0,0.00038714]
[1765246073361,0.23271017,90241.0,90240.0,0.46662573]
[1765246073588,0.23271017,90241.0,90232.0,0.676174]
[1765246073589,0.01108241,90233.0,90232.0,0.676174]
[1765246073802,0.01108241,90233.0,90232.0,0.323]
[1765246074600,0.03249241,90233.0,90232.0,0.323]
[1765246075015,0.01108266,90231.0,90228.0,0.01108303]
[1765246075239,0.22168233,90220.0,90211.0,0.22170228]
[1765246075453,0.01498,90222.0,90221.0,0.111752]
[1765246076053,0.01498,90222.0,90220.0,0.08283677]
[1765246076730,0.01498,90222.0,90221.0,0.003]
[1765246076929,0.01498,90222.0,90221.0,0.005]
[1765246077280,0.03639,90222.0,90221.0,0.002]
[1765246078125,0.0709,90222.0,90221.0,0.002]
[1765246078302,0.03639,90222.0,90221.0,0.22567787]
[1765246078710,0.01108303,90228.0,90224.0,0.23275297]
[1765246078960,0.01108327,90226.0,90221.0,0.23676176]
[1765246079272,0.01108352,90224.0,90221.0,0.004]
[1765246079451,0.03639,90222.0,90221.0,0.001]
[1765246079795,0.0709,90222.0,90220.0,0.08283677]
[1765246080002,0.02141,90221.0,90220.0,0.08283677]
[1765246080694,0.05592,90221.0,90220.0,0.08283677]
[1765246080898,0.02141,90221.0,90220.0,0.08283677]
[1765246081100,0.01498,90222.0,90221.0,0.22167787]
[1765246082385,0.03527,90222.0,90221.0,0.22167787]
[1765246082957,0.01498,90222.0,90221.0,0.22167787]
[1765246083215,0.01498,90222.0,90221.0,0.22267787]
[1765246084035,0.01498,90222.0,90221.0,0.22667787]
[1765246085416,0.06647,90222.0,90221.0,0.005]
[1765246085625,0.33560995,90222.0,90221.0,0.005]
[1765246085969,0.29975647,90222.0,90221.0,0.005]
[1765246086545,0.29975647,90222.0,90221.0,0.004]
[1765246086750,0.01108536,90209.0,90204.0,0.01108598]
[1765246086947,0.23278757,90211.0,90206.0,0.33408573]
[1765246087131,0.02029,90207.0,90206.0,0.33408573]
[1765246087331,0.03516,90207.0,90206.0,0.33408573]
[1765246087537,0.06636,90207.0,90206.0,0.33408573]
[1765246088264,0.06636,90207.0,90206.0,0.33908573]
[1765246088456,0.06636,90207.0,90205.0,0.33408585]
[1765246088663,0.05149,90206.0,90205.0,0.323]
[1765246088863,0.05149,90206.0,90180.0,0.00119999]
[1765246088864,0.01108831,90185.0,90180.0,0.47846453]
[1765246089084,0.01108831,90185.0,90180.0,0.0002]
[1765246089085,0.03516,90181.0,90180.0,0.0002]
[1765246089387,0.06636,90181.0,90180.0,0.0002]
[1765246090147,0.08388,90181.0,90180.0,0.0002]
[1765246090552,0.08388,90181.0,90180.0,0.0052]
[1765246090726,0.08388,90181.0,90180.0,0.0012]
[1765246091160,0.08388,90181.0,90180.0,0.0022]
[1765246091621,0.08388,90181.0,90180.0,0.0012]
[1765246093624,0.08388,90181.0,90180.0,0.00131617]
[1765246099334,0.09387818,90181.0,90180.0,0.00131617]
[1765246100326,0.09387818,90181.0,90180.0,0.00031617]
[1765246100846,0.08888,90181.0,90180.0,0.00031617]
[1765246101059,0.11088,90181.0,90180.0,0.00031617]
[1765246101248,0.08888,90181.0,90180.0,0.00031617]
[1765246101456,0.3106562,90181.0,90180.0,0.00031617]
[1765246102201,0.3326562,90181.0,90180.0,0.00031617]
[1765246103010,0.3106562,90181.0,90180.0,0.00031617]
[1765246105197,0.3326562,90181.0,90180.0,0.00031617]
[1765246105402,0.3106562,90181.0,90180.0,0.00031617]
[1765246106923,0.3326562,90181.0,90180.0,0.00031617]
[1765246108199,0.3106562,90181.0,90180.0,0.00031617]
[1765246110108,0.3326562,90181.0,90180.0,0.00031617]
[1765246111516,0.3106562,90181.0,90180.0,0.00031617]
[1765246112189,0.08888,90181.0,90180.0,0.00031617]
[1765246112358,0.08388,90181.0,90180.0,0.00031617]
[1765246112557,0.08488,90181.0,90180.0,0.00031617]
[1765246115424,0.05368,90181.0,90180.0,0.00031617]
[1765246116012,0.08254,90181.0,90180.0,0.00031617]
[1765246117472,0.03339,90181.0,90180.0,0.00031617]
[1765246117675,0.001,90181.0,90180.0,0.00031617]
[1765246117973,0.001,90181.0,90180.0,0.02230208]
[1765246118187,0.001,90181.0,90180.0,1.05864208]
[1765246118408,0.02771772,90195.0,90194.0,0.22174424]
[1765246118552,0.01108672,90198.0,90195.0,0.01108708]
[1765246118739,0.01108659,90199.0,90196.0,0.23282628]
[1765246118938,0.23281289,90202.0,90196.0,0.23282628]
[1765246119198,0.01108635,90201.0,90196.0,0.01108696]
[1765246119400,0.01108635,90201.0,90198.0,0.01108672]
[1765246119744,0.01108598,90204.0,90198.0,0.01108672]
[1765246119981,0.01108598,90204.0,90201.0,0.01108635]
[1765246120183,0.0110861,90203.0,90200.0,0.01108647]
[1765246120366,0.01108585,90205.0,90201.0,0.2328131]
[1765246120571,0.01425,90206.0,90203.0,0.0110861]
[1765246120915,0.01108512,90211.0,90208.0,0.01108549]
[1765246121113,0.01425,90213.0,90210.0,0.01108524]
[1765246121492,0.01425,90213.0,90210.0,0.23278789]
[1765246121700,0.01108499,90212.0,90209.0,0.01108536]
[1765246121869,0.01108499,90212.0,90207.0,0.01108561]
[1765246121870,0.01108512,90211.0,90207.0,0.2327975]
[1765246122072,0.02097,90210.0,90207.0,0.2327975]
[1765246122362,0.02097,90210.0,90208.0,0.22170766]
[1765246122503,0.01425,90213.0,90210.0,0.01108524]
[1765246122706,0.01525,90213.0,90211.0,0.22170245]
[1765246123639,0.001,90213.0,90211.0,0.22170245]
[1765246123793,0.01752,90217.0,90214.0,0.23277896]
[1765246124321,0.01108377,90222.0,90218.0,0.01108426]
[1765246124519,0.23592285,90224.0,90218.0,0.01108426]
[1765246124520,0.02533352,90224.0,90220.0,0.22167796]
[1765246124721,0.01425,90224.0,90221.0,0.23276015]
[1765246124889,0.01425,90224.0,90221.0,0.01108389]
[1765246125094,0.01108327,90226.0,90222.0,0.01108377]
[1765246125810,0.001,90224.0,90222.0,0.23275809]
[1765246126696,0.01952,90223.0,90222.0,0.01108377]
[1765246126894,0.06092364,90223.0,90218.0,0.01108426]
[1765246127126,0.01952,90219.0,90216.0,0.0110845]
[1765246127329,0.01952,90217.0,90216.0,0.0110845]
[1765246127535,0.01952,90217.0,90214.0,0.09392152]
[1765246127730,0.01952,90217.0,90215.0,0.22169262]
[1765246128146,0.01952,90217.0,90216.0,0.003]
[1765246128362,0.22328643,90223.0,90219.0,0.01108413]
[1765246128767,0.01108389,90221.0,90217.0,0.2216877]
[1765246129327,0.01108401,90220.0,90217.0,0.01108438]
[1765246129530,0.00161287,90223.0,90218.0,0.01108426]
[1765246129672,0.01269651,90223.0,90220.0,0.01108401]
[1765246129864,0.01269651,90223.0,90218.0,0.01108426]
[1765246130065,0.23275919,90222.0,90218.0,0.01108426]
[1765246130291,0.01108401,90220.0,90217.0,0.01108438]
[1765246130655,0.01108438,90217.0,90214.0,0.08283677]
[1765246130854,0.03409,90215.0,90214.0,0.08283677]
[1765246131071,0.01269651,90223.0,90218.0,0.23276732]
[1765246131273,0.00161287,90223.0,90220.0,0.2327631]
[1765246132285,0.02860315,90227.0,90224.0,0.01108352]
[1765246132455,0.01108266,90231.0,90228.0,0.01108303]
[1765246134429,0.01425,90232.0,90229.0,0.01108291]
[1765246134634,0.01425,90232.0,90224.0,0.001]
[1765246134635,0.03060278,90230.0,90223.0,0.23275447]
[1765246134834,0.01108303,90228.0,90223.0,0.23275447]
[1765246135040,0.01108315,90227.0,90223.0,0.23275447]
[1765246135574,0.03409,90224.0,90221.0,0.6999367]
[1765246135873,0.03409,90224.0,90219.0,0.01108413]
[1765246136021,0.01108426,90218.0,90214.0,0.09392152]
[1765246136221,0.01108438,90217.0,90215.0,0.115709]
[1765246136426,0.03060426,90218.0,90215.0,0.22169257]
[1765246136702,0.01108389,90221.0,90217.0,0.01108438]
[1765246136895,0.0372704,90221.0,90217.0,0.01108438]
[1765246137226,0.01108401,90220.0,90217.0,0.01108438]
[1765246137426,0.02058849,90219.0,90217.0,0.01108438]
[1765246137725,0.02058849,90219.0,90217.0,0.01208438]
[1765246138122,0.02058849,90219.0,90217.0,0.01108438]
[1765246138377,0.01952,90218.0,90217.0,0.01108438]
[1765246138572,0.01952,90218.0,90217.0,0.01208438]
[1765246138926,0.01952,90218.0,90217.0,0.01508438]
[1765246139130,0.01952,90218.0,90217.0,0.01208438]
[1765246139579,0.01952,90218.0,90217.0,0.01508438]
[1765246139731,0.01952,90218.0,90217.0,0.01408438]
[1765246140075,0.01952,90218.0,90217.0,0.01508438]
[1765246140887,0.05145287,90218.0,90217.0,0.004]
[1765246141093,0.07916352,90218.0,90217.0,0.004]
[1765246141568,0.02113287,90218.0,90217.0,0.003]
[1765246141752,0.02113287,90218.0,90209.0,0.09392213]
[1765246141753,0.01108475,90214.0,90209.0,0.08283677]
[1765246141959,0.03409,90210.0,90204.0,0.46720875]
[1765246142165,0.03409,90205.0,90204.0,0.18049598]
[1765246142347,0.03409,90205.0,90204.0,0.11471]
[1765246142546,0.03409,90205.0,90203.0,0.23280648]
[1765246142746,0.01457,90205.0,90203.0,0.23280648]
[1765246143195,0.01457,90205.0,90204.0,0.144356]
[1765246143757,0.01457,90210.0,90208.0,0.22170982]
[1765246144501,0.01886,90209.0,90208.0,0.22170982]
[1765246144860,0.01457,90210.0,90208.0,0.22170982]
[1765246145412,0.0458,90209.0,90208.0,0.004]
[1765246145616,0.01886,90209.0,90208.0,0.004]
[1765246145818,0.01457,90210.0,90208.0,0.004]
[1765246145996,0.01457,90210.0,90208.0,0.22570815]
[1765246146192,0.01108487,90213.0,90209.0,0.31562765]
[1765246147123,0.01269762,90214.0,90210.0,0.01108524]
[1765246147477,0.0404095,90214.0,90210.0,0.01108524]
[1765246147871,0.01108487,90213.0,90210.0,0.01108524]
[1765246148083,0.23278406,90213.0,90209.0,0.31662765]
[1765246148330,0.23278406,90213.0,90209.0,0.31962765]
[1765246148331,0.01108499,90212.0,90209.0,0.31962765]
[1765246148483,0.01108499,90212.0,90209.0,0.09492213]
[1765246148878,0.01108499,90212.0,90210.0,0.003]
[1765246149080,0.23278731,90212.0,90210.0,0.001]
[1765246149284,0.01108487,90213.0,90210.0,0.001]
[1765246149486,0.02771249,90212.0,90209.0,0.31962893]
[1765246149907,0.03879748,90212.0,90209.0,0.09892213]
[1765246150109,0.01886,90210.0,90209.0,0.08783677]
[1765246150574,0.0458,90210.0,90209.0,0.001]
[1765246151316,0.07351311,90210.0,90209.0,0.001]
[1765246151518,0.07351311,90210.0,90209.0,0.005]
[1765246151719,0.07351311,90210.0,90209.0,0.001]
[1765246152172,0.07451311,90210.0,90209.0,0.001]
[1765246152412,0.01108635,90201.0,90197.0,0.01108684]
[1765246152556,0.0110861,90203.0,90199.0,0.01108659]
[1765246152751,0.01108598,90204.0,90201.0,0.01108635]
[1765246152974,0.01108598,90204.0,90200.0,0.01108647]
[1765246153179,0.01315,90205.0,90201.0,0.23281338]
[1765246153382,0.01315,90205.0,90202.0,0.01108622]
[1765246153579,0.02423585,90205.0,90202.0,0.01108622]
[1765246153902,0.01108622,90202.0,90199.0,0.01308659]
[1765246154061,0.01826,90200.0,90199.0,0.002]
[1765246154261,0.01826,90200.0,90189.0,0.02198591]
[1765246154262,0.01108708,90195.0,90190.0,0.47829645]
[1765246154491,0.03141,90192.0,90190.0,0.0110877]
[1765246154685,0.03141,90192.0,90190.0,0.23283978]
[1765246154849,0.01108672,90198.0,90192.0,0.2328366]
[1765246155056,0.02423659,90199.0,90196.0,0.22173832]
[1765246155250,0.01315,90199.0,90196.0,0.23282528]
[1765246155697,0.22172058,90204.0,90196.0,0.23282528]
[1765246155698,0.01315,90205.0,90201.0,0.01108635]
[1765246155902,0.02934622,90202.0,90198.0,0.01108672]
[1765246156202,0.01108672,90198.0,90195.0,0.01108708]
[1765246156402,0.01826,90195.0,90194.0,0.01108721]
[1765246156820,0.01108672,90198.0,90195.0,0.01108708]
[1765246157022,0.01108659,90199.0,90195.0,0.23282695]
[1765246157242,0.01108659,90199.0,90196.0,0.002]
[1765246157630,0.01108659,90199.0,90195.0,0.23282695]
[1765246157950,0.01108659,90199.0,90196.0,0.01108696]
[1765246158102,0.23280576,90204.0,90197.0,0.2328237]
[1765246158968,0.0110861,90203.0,90200.0,0.01108647]
[1765246159923,0.01108622,90202.0,90198.0,0.01108672]
[1765246160154,0.01108622,90202.0,90199.0,0.01108659]
[1765246160354,0.01108598,90204.0,90201.0,0.01108635]
[1765246160841,0.01315,90205.0,90202.0,0.01108622]
[1765246161776,0.0110861,90203.0,90201.0,0.002]
[1765246162230,0.0110861,90203.0,90201.0,0.00211617]
[1765246162446,0.01315,90207.0,90202.0,0.01108622]
[1765246162652,0.01108573,90206.0,90203.0,0.0110861]
[1765246162863,0.01108573,90206.0,90202.0,0.2547951]
[1765246162864,0.01108573,90206.0,90202.0,0.22172457]
[1765246163236,0.01108585,90205.0,90202.0,0.01308622]
[1765246163434,0.01108585,90205.0,90202.0,0.01108622]
[1765246163904,0.01108573,90206.0,90203.0,0.0120861]
[1765246164319,0.01108573,90206.0,90203.0,0.0110861]
[1765246164922,0.02953186,90237.0,90202.0,0.2328088]
[1765246164923,0.01315,90213.0,90209.0,0.22170736]
[1765246165153,0.23484763,90213.0,90208.0,0.23279314]
[1765246165349,0.23484763,90213.0,90208.0,0.2327931]
[1765246165350,0.2348499,90213.0,90208.0,0.2327931]
[1765246165552,0.01108499,90212.0,90206.0,0.01108573]
[1765246165757,0.01826,90207.0,90206.0,0.01108573]
[1765246166471,0.03929499,90212.0,90207.0,0.23279789]
[1765246167483,0.01108512,90211.0,90206.0,0.01108573]
[1765246167709,0.26099981,90211.0,90207.0,0.001]
[1765246168150,0.01108524,90210.0,90207.0,0.01208561]
[1765246169144,0.01108524,90210.0,90207.0,0.01108561]
[1765246169345,0.01108536,90209.0,90206.0,0.01108573]
[1765246169542,0.01108536,90209.0,90206.0,0.01208573]
[1765246169758,0.01108536,90209.0,90206.0,0.01108573]
[1765246169966,0.01108536,90209.0,90207.0,0.001]
[1765246170382,0.01108536,90209.0,90206.0,0.01108573]
[1765246170555,0.01108536,90209.0,90206.0,0.01208573]
[1765246170979,0.01108536,90209.0,90206.0,0.01108573]
[1765246171405,0.03141,90207.0,90205.0,0.08283677]
[1765246171584,0.03141,90207.0,90201.0,0.00011617]
[1765246171585,0.22172457,90202.0,90201.0,0.00011617]
[1765246171784,0.23998457,90202.0,90201.0,0.00011617]
[1765246171987,0.29019457,90202.0,90201.0,0.00011617]
[1765246172211,0.26819457,90202.0,90201.0,0.00011617]
[1765246173017,0.26819457,90202.0,90201.0,0.00111617]
[1765246173221,0.26819457,90202.0,90201.0,0.00011617]
[1765246173530,0.23998457,90202.0,90201.0,0.00011617]
[1765246173890,0.26819457,90202.0,90201.0,0.00011617]
[1765246174076,0.01826,90202.0,90201.0,0.00111617]
[1765246174709,0.25032292,90206.0,90201.0,0.00111617]
[1765246174710,0.01108573,90206.0,90202.0,0.01108622]
[1765246174910,0.23279676,90208.0,90202.0,0.01108622]
[1765246175115,0.01108549,90208.0,90204.0,0.01108598]
[1765246175424,0.01108573,90206.0,90203.0,0.0110861]
[1765246175658,0.01108573,90206.0,90202.0,0.01108622]
[1765246175942,0.01108573,90206.0,90202.0,0.01208622]
[1765246176141,0.01108573,90206.0,90202.0,0.01408622]
[1765246176500,0.01108573,90206.0,90202.0,0.01208622]
[1765246176719,0.01108573,90206.0,90202.0,0.01408622]
[1765246176921,0.01108585,90205.0,90202.0,0.01308622]
[1765246177345,0.01108585,90205.0,90203.0,0.001]
[1765246177741,0.01108585,90205.0,90202.0,0.01308622]
[1765246177953,0.23280323,90205.0,90202.0,0.002]
[1765246178185,0.22172154,90204.0,90202.0,0.003]
[1765246178351,0.01826,90203.0,90202.0,0.003]
[1765246178736,0.01826,90203.0,90202.0,0.001]
[1765246179109,0.01826,90203.0,90202.0,0.003]
[1765246179307,0.01826,90203.0,90202.0,0.001]
[1765246179771,0.01826,90203.0,90202.0,0.004]
[1765246179993,0.01108573,90206.0,90202.0,0.23581079]
[1765246180177,0.01108573,90206.0,90205.0,0.08283677]
[1765246180499,0.01108536,90209.0,90206.0,0.01108573]
[1765246180697,0.22170646,90210.0,90207.0,0.01108561]
[1765246180841,0.01108499,90212.0,90207.0,0.01108561]
[1765246181040,0.01108512,90211.0,90207.0,0.01108561]
[1765246181284,0.01108524,90210.0,90206.0,0.01108573]
[1765246182868,0.01108524,90210.0,90206.0,0.01208573]
[1765246183641,0.01108536,90209.0,90206.0,0.01208573]
[1765246184906,0.01108549,90208.0,90205.0,0.09392262]
[1765246185107,0.01248,90206.0,90205.0,0.08283677]
[1765246186410,0.01248,90206.0,90205.0,0.08483677]
[1765246187249,0.01248,90206.0,90205.0,0.08583677]
[1765246189140,0.05788,90206.0,90205.0,0.003]
[1765246189565,0.08559434,90206.0,90205.0,0.003]
[1765246193091,0.22173599,90198.0,90196.0,0.46720875]
[1765246193323,0.22173599,90198.0,90194.0,0.01108721]
[1765246193873,0.23282271,90198.0,90194.0,0.01108721]
[1765246194271,0.01108672,90198.0,90194.0,0.01108721]
[1765246194490,0.01108672,90198.0,90194.0,0.01508721]
[1765246194695,0.02356659,90199.0,90195.0,0.23282886]
[1765246195038,0.02356659,90199.0,90196.0,0.01108696]
[1765246195502,0.2217344,90198.0,90196.0,0.002]
[1765246195873,0.01108684,90197.0,90194.0,0.01108721]
[1765246196075,0.01108684,90197.0,90196.0,0.001]
[1765246196483,0.01108684,90197.0,90195.0,0.004]
[1765246196687,0.23282573,90197.0,90195.0,0.004]
[1765246196889,0.23282573,90197.0,90196.0,0.001]
[1765246197503,0.23282573,90197.0,90196.0,0.004]
[1765246197921,0.02356659,90199.0,90196.0,0.01208696]
[1765246198120,0.02356659,90199.0,90196.0,0.01508696]
[1765246198328,0.01108524,90210.0,90203.0,0.22172004]
[1765246198527,0.01108549,90208.0,90204.0,0.22171793]
[1765246198912,0.01108561,90207.0,90203.0,0.23280614]
[1765246199105,0.01108585,90205.0,90202.0,0.01108622]
[1765246199952,0.01108585,90205.0,90204.0,0.001]
[1765246200156,0.02356573,90206.0,90203.0,0.0110861]
[1765246200511,0.22167976,90221.0,90213.0,0.01108487]
[1765246200713,0.0110834,90225.0,90221.0,0.01108389]
[1765246200904,0.01108315,90227.0,90221.0,0.01108389]
[1765246201100,0.01108192,90237.0,90232.0,0.01108254]
[1765246201324,0.03714727,90256.0,90243.0,0.01108119]
[1765246201325,0.23268894,90250.0,90243.0,0.01108119]
[1765246201522,0.23268894,90250.0,90245.0,0.01108094]
[1765246201523,0.01108045,90249.0,90245.0,0.01108094]
[1765246201748,0.01108045,90249.0,90240.0,0.46743309]
[1765246201749,0.01108131,90242.0,90236.0,0.216842]
[1765246202079,0.22163366,90239.0,90237.0,0.11716]
[1765246202279,0.22163366,90239.0,90230.0,0.02198591]
[1765246202280,0.01108266,90231.0,90228.0,0.323]
[1765246202492,0.22165576,90230.0,90228.0,0.323]
[1765246202658,0.0308,90229.0,90228.0,0.323]
[1765246203264,0.01339,90229.0,90227.0,0.323]
[1765246203682,0.23273892,90230.0,90228.0,0.001]
[1765246203903,0.01108278,90230.0,90228.0,0.001]
[1765246204111,0.23273986,90230.0,90228.0,0.001]
[1765246204360,0.04202,90229.0,90228.0,0.002]
[1765246204568,0.01741,90229.0,90228.0,0.001]
[1765246204774,0.01108315,90227.0,90224.0,0.01108352]
[1765246204987,0.22166559,90226.0,90224.0,0.328333]
[1765246205194,0.23274886,90226.0,90223.0,0.274733]
[1765246205408,0.01108377,90222.0,90219.0,0.08283677]
[1765246205614,0.01108377,90222.0,90220.0,0.132056]
[1765246205836,0.01108377,90222.0,90219.0,0.08283677]
[1765246205837,0.01741,90221.0,90219.0,0.08283677]
[1765246206052,0.01741,90220.0,90219.0,0.08283677]
[1765246206260,0.01741,90220.0,90219.0,0.21359677]
[1765246206880,0.01741,90220.0,90219.0,0.08283677]
[1765246207085,0.2216803,90221.0,90219.0,0.08283677]
[1765246207295,0.01741,90220.0,90219.0,0.08283677]
[1765246207509,0.04402,90220.0,90219.0,0.08283677]
[1765246207713,0.01941,90220.0,90219.0,0.19788877]
[1765246207894,0.01941,90220.0,90219.0,0.08283677]
[1765246209625,0.002,90220.0,90219.0,0.08283677]
[1765246211605,0.002,90220.0,90219.0,0.30451956]
[1765246212432,0.002,90220.0,90219.0,0.08283677]
[1765246213258,0.002,90220.0,90219.0,0.08295296]
[1765246215408,0.04594287,90220.0,90219.0,0.00011619]
[1765246216940,0.04394287,90220.0,90219.0,0.00011619]
[1765246217159,0.04594287,90220.0,90219.0,0.00011619]
[1765246217780,0.04694287,90220.0,90219.0,0.00011619]
[1765246218194,0.04594287,90220.0,90219.0,0.00011619]
[1765246222966,0.02004287,90220.0,90219.0,0.00011619]
[1765246223122,0.04594287,90220.0,90219.0,0.00011619]
[1765246223324,0.00361287,90220.0,90219.0,0.00011619]
[1765246223533,0.002,90220.0,90219.0,0.00011619]
[1765246223770,0.002,90220.0,90219.0,0.08295296]
[1765246224521,0.22167988,90221.0,90219.0,0.08295296]
[1765246225257,0.01643,90220.0,90219.0,0.08395296]
[1765246225461,0.22167988,90221.0,90219.0,0.08395296]
[1765246225666,0.22167958,90221.0,90219.0,0.08495296]
[1765246226120,0.23276105,90222.0,90219.0,0.08395296]
[1765246226493,0.23276105,90222.0,90219.0,0.08295296]
[1765246226699,0.01108364,90223.0,90219.0,0.09703709]
[1765246226927,0.01108303,90228.0,90225.0,0.0110834]
[1765246227162,0.01108266,90231.0,90227.0,0.01108315]
[1765246227363,0.01339,90235.0,90228.0,0.01108303]
[1765246227364,0.23273505,90232.0,90228.0,0.01108303]
[1765246229516,0.23373505,90232.0,90229.0,0.01108291]
[1765246229724,0.01108254,90232.0,90229.0,0.01108291]
[1765246229947,0.01108229,90234.0,90230.0,0.23273854]
[1765246230127,0.01108229,90234.0,90233.0,0.08283677]
[1765246230541,0.22164076,90237.0,90233.0,0.09391918]